[Event "Polish University-ch Open 2024"]
[Site "Lublin"]
[Date "2024.02.23"]
[Round "2.11"]
[White "Pytel, Maciej"]
[Black "Nowak, Mikolaj"]
[Result "0-1"]
[ECO "A02"]
[WhiteElo "1965"]
[BlackElo "2317"]
[Annotator "TA"]
[PlyCount "92"]
[EventDate "2024.02.22"]
[EventType "swiss"]
[EventCountry "POL"]
[SourceTitle "playchess.com"]
[Source "ChessBase"]
[SourceQuality "1"]
[TimeControl "600+3"]

{[%evp 9,92,11,8,-2,24,0,0,-25,-34,-21,-31,-64,-25,-97,-84,-87,-95,-108,-55,-104,0,-6,-18,-20,-9,-49,0,8,54,-22,-16,-87,-67,-83,-95,-67,-27,-37,-32,-45,-56,-46,-42,-42,-43,-44,-50,-95,0,-67,-26,-250,-274,-604,-275,-302,-294,-260,-206,-312,-310,-319,-309,-312,-287,-331,-345,-376,-376,-412,-372,-367,-357,-362,-339,-410,-340,-369,-378,-416,-419,-469,-452,-529,-521]} 1. f4 {[%emt 0:00:03]} g6 {[%emt 0:00:09]} 2. Nf3 {[%emt 0:00:02]} Bg7 {[%emt 0:00:02]} 3. g3 {[%emt 0:00:02]} Nc6 {[%emt 0:00:50]} 4. Bg2 {[%emt 0:00:09]} f5 {[%emt 0:00:25]} 5. c3 {[%emt 0:00:28]} Nf6 {[%emt 0:00:08]} 6. d3 {[%emt 0:00:03]} O-O {[%emt 0:00:14]} 7. O-O {[%emt 0:00:03][%cal Oe2e4]} d6 {[%emt 0:00:16]} 8. Nbd2 {[%emt 0:00:18] The position is equal.} e5 {[%emt 0:00:21]} 9. Qb3+ {[%emt 0:00:07]} Kh8 {[%emt 0:00:07]} 10. Ng5 {[%emt 0:00:40][%cal Bf3g5,Bg5h3,Bh3f2][%mdl 32]} Qe7 {[%emt 0:00:41]} 11. e4 {[%emt 0:01:05]} (11. Nc4 $11 {remains equal.}) 11... exf4 $17 {[%emt 0:00:12]} 12. gxf4 {[%emt 0:00:12]} h6 {[%emt 0:01:25]} 13. Nh3 {[%emt 0:00:19]} Ng4 {[%emt 0:00:19]} (13... Nh5 $17 14. Qd1 a5) 14. Nf3 {[%emt 0:00:54]} (14. exf5 $15 {should be considered.} Qe3+ (14... gxf5 15. Nf2 $11) (14... Rxf5 15. Ne4 $15) (14... Bxf5 15. Qxb7 Qe3+ 16. Nf2 $16) 15. Nf2 Nxf2 (15... Bxf5 16. Qxb7 Nxf2 17. Rxf2 $14) (15... Rxf5 $2 16. Nde4 $18) (15... Qxf4 16. Nxg4 Qxg4 17. Nc4 $17) 16. Rxf2) 14... Rb8 {[%emt 0:01:25]} (14... fxe4 $17 15. dxe4 Qxe4) 15. Bd2 {[%emt 0:00:26]} Be6 {[%emt 0:00:05]} 16. Qc2 {[%emt 0:00:02]} Rbe8 {[%emt 0:04:12]} 17. Rae1 {[%emt 0:00:06]} Qd8 {[%emt 0:00:00]} (17... Bxa2 18. exf5 (18. b3 d5 $16) 18... Qf7 19. fxg6 $18) (17... fxe4 $15 18. Rxe4 d5) 18. Nf2 $11 {[%emt 0:00:19]} Nf6 {[%emt 0:00:00]} (18... Nxf2 $11 19. Rxf2 Qd7) 19. b3 {[%emt 0:00:21]} (19. Nh4 $14 Ne7 20. exf5 Bxf5 21. Nh1) 19... Nh5 {[%emt 0:00:00]} 20. e5 {[%emt 0:00:38]} (20. Qc1 $11 {keeps the balance.}) 20... dxe5 $17 {[%emt 0:00:00]} 21. Nxe5 {[%emt 0:00:05]} Nxe5 {[%emt 0:00:00]} 22. fxe5 {[%emt 0:00:02][%cal Od3d4]} Bd5 {[%emt 0:00:00]} 23. d4 {[%emt 0:00:11] [#]} c5 $1 {[%emt 0:00:00]} 24. Qd3 {[%emt 0:00:31]} (24. Bxd5 Qxd5) 24... Bxg2 {[%emt 0:00:00]} 25. Kxg2 {[%emt 0:00:02]} cxd4 {[%emt 0:00:00]} 26. cxd4 {[%emt 0:00:21]} Qd5+ {[%emt 0:00:00]} 27. Kg1 {[%emt 0:00:33]} Rd8 {[%emt 0:00:00]} 28. Bc3 {[%emt 0:00:10]} Rc8 {[%emt 0:00:00]} ({Better is} 28... Nf4 $17 {[%csl Gf4][%cal Rd5g2]} 29. Qg3 Rc8 (29... g5 30. Nd3 $11)) 29. Ba1 {[%emt 0:00:12]} (29. Nd1 $11) 29... Rfd8 {[%emt 0:00:00] Black is more active.} 30. Qe3 $2 {[%emt 0:00:11] Repels Rc1. Loses the game.} (30. Qd2 $11 {and White is okay.}) 30... Rc2 $19 {[%emt 0:00:02][%cal Og6g5] [#] And now ...g5! would win.} 31. a4 $2 {[%emt 0:00:29]} (31. Rd1) 31... Rdc8 {[%emt 0:00:01]} (31... g5 $142 32. b4 Ra2 (32... Nf4 $2 33. Qg3 $19)) 32. e6 {[%emt 0:00:37]} Re8 {[%emt 0:00:07]} 33. e7 {[%emt 0:00:35]} Rc7 $40 {[%emt 0:00:11][%mdl 128] White must now prevent ...Rcxe7. Black wants a kill.} 34. Qe6 {[%emt 0:00:01]} (34. Nd3 $142) 34... Qxe6 {[%emt 0:00:05]} 35. Rxe6 {[%emt 0:00:01]} Nf4 {[%emt 0:00:02] Dodges Nd3} ({Don't play} 35... Rcxe7 36. Rxe7 Rxe7 37. Nd3) (35... Rexe7 $2 36. Rxg6 Nf4 37. d5 $17) 36. Re3 {[%emt 0:00:08]} Rcxe7 {[%emt 0:00:02]} 37. Rxe7 {[%emt 0:00:03]} Rxe7 {[%emt 0:00:01]} 38. Nd1 {[%emt 0:00:11]} Ne2+ {[%emt 0:00:02]} 39. Kf2 {[%emt 0:00:03]} Bxd4+ {[%emt 0:00:07]} 40. Bxd4+ {[%emt 0:00:09]} Nxd4 {[%emt 0:00:02][%mdl 4096] Endgame. KRN-KRN} 41. b4 {[%emt 0:00:09]} Kg7 {[%emt 0:00:07]} 42. Ne3 {[%emt 0:00:03]} Nc6 {[%emt 0:00:04]} 43. b5 {[%emt 0:00:03]} Ne5 {[%emt 0:00:01]} 44. Rd1 {[%emt 0:00:03]} Rd7 {[%emt 0:00:03]} 45. Ra1 {[%emt 0:00:32]} f4 {[%emt 0:00:04]} 46. Ng2 {[%emt 0:00:06]} Rd2+ {[%emt 0:00:08] Weighted Error Value: White=0.51/Black=0.34.  Loses game:     	White=1     	---        Mistake:       	White=7     	Black=6      Inaccurate:     	White=3     	Black=4      OK:         	White=9     	Black=15     Best:        	White=3     	Black=4} 0-1

[Event "Polish University-ch Open 2024"]
[Site "Lublin"]
[Date "2024.02.23"]
[Round "2.12"]
[White "Pacan-Milej, Kosma"]
[Black "Litner, Igor"]
[Result "0-1"]
[ECO "D36"]
[WhiteElo "2438"]
[BlackElo "2000"]
[Annotator "TA"]
[PlyCount "70"]
[EventDate "2024.02.22"]
[EventType "swiss"]
[EventCountry "POL"]
[SourceTitle "playchess.com"]
[Source "ChessBase"]
[SourceQuality "1"]
[TimeControl "600+3"]

{[%evp 16,70,25,13,12,14,10,6,18,17,22,24,40,35,48,37,34,37,31,29,52,41,57,48,50,50,62,62,60,46,47,46,51,13,43,0,0,0,0,0,0,-24,-30,-806,-739,-29975,-29976,-29991,-29992,-29993,-29994,-29994,-29995,-29995,-29996,-29996,-29997]} 1. d4 {[%emt 0:00:02]} Nf6 {[%emt 0:00:02]} 2. c4 {[%emt 0:00:02]} e6 {[%emt 0:00:02]} 3. Nc3 {[%emt 0:00:01]} d5 {[%emt 0:00:01]} 4. cxd5 {[%emt 0:00:02]} exd5 {[%emt 0:00:01]} 5. Bg5 {[%emt 0:00:02]} c6 {[%emt 0:00:01]} 6. e3 {[%emt 0:00:02]} Be7 {[%emt 0:00:01]} 7. Bd3 {[%emt 0:00:01]} h6 {[%emt 0:00:03]} 8. Bh4 {[%emt 0:00:02]} O-O {[%emt 0:00:02]} 9. Qc2 {[%emt 0:00:02]} Ne8 {[%emt 0:00:01][%cal Bf6e8,Be8d6,Bd6f5][%mdl 32]} 10. Bxe7 {[%emt 0:00:02]} Qxe7 {[%emt 0:00:02]} 11. Nf3 {[%emt 0:00:02][%cal Oc3d5]} Nd6 {[%emt 0:00:15] The position is equal.} 12. O-O {[%emt 0:00:03]} Qf6 {[%emt 0:00:28]} 13. b4 {[%emt 0:00:07]} a6 {[%emt 0:00:15]} 14. a4 {[%emt 0:00:01]} Bf5 {[%emt 0:00:07]} 15. Bxf5 {[%emt 0:00:04]} Qxf5 {[%emt 0:00:01]} 16. Qxf5 {[%emt 0:00:03]} Nxf5 {[%emt 0:00:01]} 17. Ne5 {[%emt 0:00:01]} f6 {[%emt 0:00:29]} 18. Nd3 {[%emt 0:00:36]} Nd7 {[%emt 0:00:44]} 19. Nc5 {[%emt 0:00:52]} Nxc5 {[%emt 0:00:04]} 20. bxc5 {[%emt 0:00:02]} Rae8 {[%emt 0:00:01]} 21. Rab1 {[%emt 0:00:07]} Rf7 {[%emt 0:00:09]} 22. Rb6 {[%emt 0:00:15]} g5 {[%emt 0:00:41]} 23. Rfb1 {[%emt 0:01:13][%cal Og2g4] g4! is the strong threat.} Ree7 {[%emt 0:00:01]} 24. Ne2 {[%emt 0:00:27]} Ng7 {[%emt 0:00:14]} 25. g4 {[%emt 0:00:08]} f5 {[%emt 0:00:07]} 26. gxf5 {[%emt 0:00:33]} Nxf5 {[%emt 0:00:01]} 27. Nc1 {[%emt 0:00:27]} Nh4 {[%emt 0:00:06]} 28. Nb3 {[%emt 0:00:11]} Re4 {[%emt 0:00:58] [#] ...Rg4+ would now be deadly.} 29. Nd2 $2 {[%emt 0:02:34][%mdl 8192] White does not recover from this.} (29. Kf1 $11) 29... Rg4+ $19 {[%emt 0:00:06]} 30. Kh1 {[%emt 0:01:52]} Rxf2 {[%emt 0:00:01] Black mates.} 31. Rxb7 {[%emt 0:00:15]} Rgg2 {[%emt 0:00:22]} 32. Nf1 {[%emt 0:00:49] [#]} Nf3 $1 {[%emt 0:00:10][%csl Gf3][%cal Rg2g1]} ({Stronger than} 32... h5 33. Rc7 $11) 33. Rb8+ {[%emt 0:00:02]} Kg7 {[%emt 0:00:00][%csl Gf3][%cal Rg2g1]} 34. R1b7+ {[%emt 0:00:03]} Kg6 {[%emt 0:00:01][%csl Gf3][%cal Rg2g1]} 35. Rg8+ {[%emt 0:00:17]} Kh5 {[%emt 0:00:00] Weighted Error Value: White=0.40/Black=0.05 (flawless) .  Loses game:     	White=1     	---        Inaccurate:     	White=3     	Black=1      OK:         	White=10    	Black=6      Best:        	---       	Black=2} 0-1

[Event "Polish University-ch Open 2024"]
[Site "Lublin"]
[Date "2024.02.23"]
[Round "2.13"]
[White "Cichon, Jakub"]
[Black "Koziorowicz, Michal"]
[Result "0-1"]
[ECO "B78"]
[WhiteElo "1964"]
[BlackElo "2324"]
[Annotator "TA"]
[PlyCount "62"]
[EventDate "2024.02.22"]
[EventType "swiss"]
[EventCountry "POL"]
[SourceTitle "playchess.com"]
[Source "ChessBase"]
[SourceQuality "1"]
[TimeControl "600+3"]

{[%evp 23,61,38,40,3,9,0,-14,-126,-128,-134,-136,-208,-219,-206,-200,-198,-197,-179,-191,-170,-159,-221,-222,-216,-164,-581,-225,-1334,-1327,-29995,-29996,-29996,-29995,-29995,-29996,-29996,-29997,-29998,-29999,-29999]} 1. e4 {[%emt 0:00:03]} c5 {[%emt 0:00:01]} 2. Nf3 {[%emt 0:00:02]} d6 {[%emt 0:00:01]} 3. d4 {[%emt 0:00:02]} cxd4 {[%emt 0:00:01]} 4. Nxd4 {[%emt 0:00:01]} Nf6 {[%emt 0:00:01]} 5. Nc3 {[%emt 0:00:02]} g6 {[%emt 0:00:00]} 6. Bc4 {[%emt 0:00:16]} Bg7 {[%emt 0:00:02]} 7. Be3 {[%emt 0:00:23]} O-O {[%emt 0:00:01]} 8. f3 {[%emt 0:00:04]} Nc6 {[%emt 0:00:01]} 9. Qd2 {[%emt 0:00:28]} Bd7 {[%emt 0:00:01]} 10. O-O-O {[%emt 0:00:04]} Rc8 {[%emt 0:00:01]} 11. Bb3 {[%emt 0:00:01]} Ne5 {[%emt 0:00:01]} 12. Kb1 {[%emt 0:00:02]} Re8 {[%emt 0:00:02]} 13. g4 {[%emt 0:00:52] Threatening h4.} b5 $1 {[%emt 0:00:01][%cal Bb7b5,Bb5b4][%mdl 32]} 14. h4 {[%emt 0:00:51][%cal Oh4h5] And now h5! would win.} (14. a3 $5) 14... b4 {[%emt 0:00:03]} 15. Nd5 {[%emt 0:01:05]} (15. Ncb5 $11) 15... Nxd5 $17 {[%emt 0:00:02]} 16. Bxd5 {[%emt 0:01:00][%cal Oh4h5] [#]} e6 $1 {[%emt 0:00:02]} 17. Bb7 {[%emt 0:01:32]} (17. Bb3 $17 a5 18. h5) 17... Nc4 $19 {[%emt 0:00:01]} 18. Qe2 {[%emt 0:00:46]} Rc5 {[%emt 0:00:39]} 19. Ba6 {[%emt 0:00:32]} ({Much weaker is} 19. Nxe6 Qf6 20. Nd4 Nxe3 21. Qxe3 Rc4 $19) 19... Nxe3 {[%emt 0:00:02]} 20. Qxe3 {[%emt 0:00:04]} Qb6 {[%emt 0:00:03]} 21. Be2 {[%emt 0:00:29]} Rec8 $36 {[%emt 0:00:05][%mdl 2048] Keeping White busy.} 22. Rd2 {[%emt 0:00:13]} (22. Rhe1 $17 {was worth a try.}) 22... Ba4 {[%emt 0:00:36] Hoping for ...Bxd4. A strong pair of Bishops.} 23. Nb3 {[%emt 0:00:33]} Bxb3 {[%emt 0:00:20]} 24. axb3 {[%emt 0:00:03] [#] White is weak on the dark squares} (24. Qxb3 Be5 25. Bd3) 24... Rxc2 $2 {[%emt 0:00:30]} 25. Qxb6 $2 {[%emt 0:00:20]} (25. Rxc2 Rxc2 (25... Qxe3 $2 26. Rxc8+ Bf8 27. Bd1 $19) 26. Qxb6 Rxb2+ 27. Kc1 axb6 28. Bc4) 25... Rxd2 {[%emt 0:00:01]} 26. Qb7 {[%emt 0:00:54]} Rxb2+ {[%emt 0:00:03] Black mates.} 27. Ka1 {[%emt 0:00:00]} Rxe2+ {[%emt 0:00:03]} 28. Kb1 {[%emt 0:00:04]} Rb2+ {[%emt 0:00:02]} 29. Ka1 {[%emt 0:00:01]} Rh2+ {[%emt 0:00:02]} 30. Kb1 {[%emt 0:00:04]} Rxh1+ {[%emt 0:00:02]} 31. Ka2 {[%emt 0:00:06]} Rc2# {[%emt 0:00:01] Black took control after the opening.   Weighted Error Value: White=1.00/Black=0.26 (precise) .  Mistake:       	White=5     	Black=1      Inaccurate:     	White=1     	---        OK:         	White=4     	Black=3      Best:        	---       	Black=5      Strong:       	---       	Black=2} 0-1

[Event "Polish University-ch Open 2024"]
[Site "Lublin"]
[Date "2024.02.23"]
[Round "2.14"]
[White "Walter, Szymon"]
[Black "Poplawski, Maciej"]
[Result "1-0"]
[ECO "C01"]
[WhiteElo "2305"]
[BlackElo "1900"]
[Annotator "TA"]
[PlyCount "89"]
[EventDate "2024.02.22"]
[EventType "swiss"]
[EventCountry "POL"]
[SourceTitle "playchess.com"]
[Source "ChessBase"]
[SourceQuality "1"]
[TimeControl "600+3"]

{[%evp 14,89,42,33,41,40,40,41,43,43,46,26,58,55,61,60,75,71,106,87,169,139,153,131,143,144,231,166,209,201,218,215,174,176,243,234,229,239,233,230,225,225,217,225,310,293,306,302,253,228,322,302,562,551,647,653,658,649,665,740,964,969,866,801,1143,1235,1237,1224,1238,1056,2130,2120,2520,2372,5709,5575,5408,5408]} 1. e4 {[%emt 0:00:02]} c6 {[%emt 0:00:04]} 2. d4 {[%emt 0:00:05]} d5 {[%emt 0:00:02]} 3. f3 {[%emt 0:00:01][%cal Bf2f3,Bf3f4][%mdl 32]} Nf6 {[%emt 0:00:08]} 4. e5 {[%emt 0:00:03]} Nfd7 {[%emt 0:00:02]} 5. f4 {[%emt 0:00:01]} e6 {[%emt 0:00:02]} 6. Nf3 {[%emt 0:00:02]} c5 {[%emt 0:00:01]} 7. c3 {[%emt 0:00:11]} Nc6 {[%emt 0:00:10]} 8. Be3 {[%emt 0:00:02]} Qb6 {[%emt 0:00:03]} 9. Qd2 {[%emt 0:00:03]} Be7 {[%emt 0:00:16]} 10. Be2 {[%emt 0:00:05]} O-O {[%emt 0:00:13] Weiß steht etwas besser.} 11. O-O {[%emt 0:00:02]} f6 {[%emt 0:00:20]} 12. Bd3 {[%emt 0:01:47]} cxd4 {[%emt 0:00:17]} 13. cxd4 {[%emt 0:00:06]} Nb4 {[%emt 0:00:40]} 14. Be2 {[%emt 0:00:05]} Nc6 {[%emt 0:00:43]} 15. Nc3 {[%emt 0:00:07] Damit ist Schwarz auf der Verliererstraße.} Re8 {[%emt 0:00:56]} 16. Rac1 {[%emt 0:00:03]} Nf8 {[%emt 0:00:03]} (16... Qd8 $16) 17. exf6 {[%emt 0:01:05]} Bxf6 {[%emt 0:00:06]} 18. Ne5 {[%emt 0:00:02]} Ne7 {[%emt 0:00:42]} 19. g4 {[%emt 0:00:14][%cal Bg2g4,Bg4g5][%mdl 32] Weiß steht deutlich aktiver. Die schwarzen Türme stehen passiv.} Neg6 {[%emt 0:01:14]} (19... Nc6 $16 20. Kh1 a6) 20. g5 {[%emt 0:00:19]} Bxe5 {[%emt 0:00:17]} 21. dxe5 {[%emt 0:00:27]} Qa5 {[%emt 0:00:03]} 22. Nb5 {[%emt 0:01:28]} Qxd2 {[%emt 0:00:05]} 23. Bxd2 {[%emt 0:00:02] Nc7 ist eine echte Drohung.} Rd8 {[%emt 0:01:20] Schwarz hat schwache schwarze Felder} (23... Re7 {war angesagt.} 24. Nd4 Rf7) 24. Rc7 $18 {[%emt 0:00:09]} Bd7 {[%emt 0:00:27]} 25. Nd6 {[%emt 0:00:36]} (25. Rxb7 Rab8 26. Rxb8 Rxb8 $16) 25... b6 {[%emt 0:00:21]} 26. Rfc1 {[%emt 0:00:16]} Nh4 {[%emt 0:00:09][%cal Bg6h4,Bh4f5,Bf5e7][%mdl 32]} 27. Kf2 {[%emt 0:01:38]} Nf5 {[%emt 0:00:23]} 28. Bd3 {[%emt 0:00:58]} g6 {[%emt 0:00:55]} 29. Rb7 {[%emt 0:00:40]} Rdb8 {[%emt 0:00:24]} 30. Rxb8 {[%emt 0:00:06]} Rxb8 {[%emt 0:00:02]} 31. Rc7 {[%emt 0:00:02]} Ra8 {[%emt 0:00:13]} (31... a5 $142 32. b3 Nxd6) 32. Ba6 {[%emt 0:00:04]} Ne7 $2 {[%emt 0:00:13] [#]} (32... h5 33. Bb4 (33. gxh6 Nxh6 34. Bb4 g5 $16) 33... Ng7) 33. Bb4 {[%emt 0:00:08] Weiß steht klar auf Gewinn.} Nc6 {[%emt 0:00:08]} 34. Bb7 {[%emt 0:00:06][%csl LRa8,LRc6]} Nxb4 {[%emt 0:00:08]} 35. Bxa8 {[%emt 0:00:01]} a6 {[%emt 0:00:07][%cal Ba7a6,Ba6a5][%mdl 32]} 36. Ke3 {[%emt 0:00:13]} Nxa2 {[%emt 0:00:03]} 37. Bc6 {[%emt 0:00:01]} Bxc6 {[%emt 0:00:11]} 38. Rxc6 {[%emt 0:00:02][%mdl 4096] Endspiel. KRN-KNN} a5 {[%emt 0:00:21]} 39. Rxb6 {[%emt 0:00:02]} Nb4 {[%emt 0:00:02]} 40. Rb7 {[%emt 0:00:05]} Nc6 {[%emt 0:00:05]} 41. Nb5 {[%emt 0:00:16]} Nd8 {[%emt 0:00:03]} 42. Rc7 {[%emt 0:00:05]} Nf7 {[%emt 0:00:02]} 43. Nd4 {[%emt 0:00:02]} h6 {[%emt 0:00:01]} 44. h4 {[%emt 0:00:01][%cal Bh2h4,Bh4g5][%mdl 32]} hxg5 {[%emt 0:00:04]} 45. hxg5 {[%emt 0:00:01] Gewichteter Fehlerwert: Weiß=0.08 (makellos) /Schwarz=0.39.  Fehler:       	---       	Schwarz=5     Ungenau:       	---       	Schwarz=3     OK:         	Weiß=11    	Schwarz=5     Bester:       	Weiß=4     	---} 1-0

[Event "Polish University-ch Open 2024"]
[Site "Lublin"]
[Date "2024.02.23"]
[Round "2.15"]
[White "Makhynia, Kostiantyn"]
[Black "Pultorak, Jan"]
[Result "1/2-1/2"]
[ECO "E06"]
[WhiteElo "1968"]
[BlackElo "2303"]
[Annotator "TA"]
[PlyCount "88"]
[EventDate "2024.02.22"]
[EventType "swiss"]
[EventCountry "POL"]
[SourceTitle "playchess.com"]
[Source "ChessBase"]
[SourceQuality "1"]
[TimeControl "600+3"]

{[%evp 10,88,16,18,39,0,51,47,50,44,34,38,22,35,25,37,64,51,78,89,116,73,69,53,73,68,83,15,8,14,23,16,19,21,37,22,60,0,0,0,0,-22,-20,-19,-5,-72,-72,-102,-43,-87,-48,-59,-23,-16,-22,-16,0,0,0,0,0,0,0,0,0,-41,0,-14,0,0,0,-3,0,0,0,0,-1,-6,0,0,0]} 1. d4 {[%emt 0:00:01]} d5 {[%emt 0:00:02]} 2. Nf3 {[%emt 0:00:02]} Nf6 {[%emt 0:00:01]} 3. c4 {[%emt 0:00:01]} e6 {[%emt 0:00:01]} 4. g3 {[%emt 0:00:02]} Be7 {[%emt 0:00:06]} 5. Bg2 {[%emt 0:00:01]} O-O {[%emt 0:00:05]} 6. O-O {[%emt 0:00:03]} a6 {[%emt 0:00:12]} 7. Qc2 {[%emt 0:00:08]} h6 {[%emt 0:00:55]} (7... dxc4 $11 8. a4 Nc6) 8. Rd1 $14 {[%emt 0:00:03]} Nbd7 {[%emt 0:00:28] White is slightly better.} 9. Ne5 {[%emt 0:00:37]} c6 {[%emt 0:01:15]} 10. Bf4 {[%emt 0:00:23]} Nxe5 {[%emt 0:00:47]} 11. Bxe5 {[%emt 0:00:17]} Nd7 {[%emt 0:00:33]} 12. Bf4 {[%emt 0:01:02]} Bf6 {[%emt 0:00:02]} 13. e4 {[%emt 0:00:11]} dxe4 {[%emt 0:00:33]} 14. Nc3 {[%emt 0:00:53]} ({Don't play} 14. Qxe4 c5 $11) 14... g5 {[%emt 0:01:49]} 15. Be3 {[%emt 0:02:07]} Bg7 {[%emt 0:00:01]} 16. Qxe4 {[%emt 0:00:12]} Qe7 {[%emt 0:00:44]} 17. d5 {[%emt 0:00:42]} Nf6 {[%emt 0:00:03]} 18. Qc2 {[%emt 0:00:14] White has more active pieces. The black rooks are passive.} ({Better is} 18. d6 $1 $16 {[%cal Rd6e7]} Qe8 19. Qc2) 18... exd5 $11 {[%emt 0:00:07]} (18... cxd5 {keeps more tension.} 19. cxd5 exd5 20. Nxd5 Nxd5 21. Bxd5 Re8) 19. cxd5 {[%emt 0:00:02]} cxd5 {[%emt 0:00:07]} 20. Nxd5 {[%emt 0:01:05]} Nxd5 {[%emt 0:00:01]} 21. Bxd5 {[%emt 0:00:09]} Bh3 {[%emt 0:00:51]} 22. Rac1 {[%emt 0:00:24] [#] Strongly threatening Bc5.} Rac8 {[%emt 0:00:21]} 23. Qb3 {[%emt 0:00:10]} ({White should play} 23. Bc5 $14 Qf6 24. Bxb7) 23... b5 {[%emt 0:00:42]} 24. Rxc8 {[%emt 0:00:37]} Rxc8 {[%emt 0:00:05]} 25. Re1 {[%emt 0:00:06]} Rd8 {[%emt 0:00:16][%cal Og7b2]} 26. Rd1 {[%emt 0:00:23][%cal Od5f7]} Bf6 {[%emt 0:00:22]} (26... Rd7 {looks sharper.} 27. Qc2 Qf6 28. Bd4 Qf5) 27. Bb6 {[%emt 0:00:36]} (27. Qc2 $11 Kg7 28. b3) 27... Rd7 $17 {[%emt 0:00:07]} 28. Qf3 {[%emt 0:00:23][%cal Ob2b4]} Qe5 {[%emt 0:00:23]} (28... h5 $17 {aiming for ...Bg4.} 29. Qb3 (29. Qxh5 $2 {too greedy.} Rxd5 30. Ra1 Qe6 $19) 29... Qe2) 29. g4 {[%emt 0:00:23] [#]} Bxg4 $1 {[%emt 0:00:31]} 30. Bxf7+ {[%emt 0:00:08]} Kxf7 {[%emt 0:00:00]} 31. Qxg4 {[%emt 0:00:02]} Rxd1+ {[%emt 0:00:00]} 32. Qxd1 {[%emt 0:00:01]} Qxb2 {[%emt 0:00:00][%mdl 4096] Endgame. KQB-KQB} (32... Kg6 {simplifies} 33. b3 Qa1 34. Qxa1 Bxa1 35. Kg2 Kf5) 33. Qd7+ {[%emt 0:00:01]} Kg6 {[%emt 0:00:00] And now ...Qa1+ would win.} 34. Qd3+ {[%emt 0:00:03]} Kf7 {[%emt 0:00:01] White must now prevent ...Qc1+.} 35. Qd7+ {[%emt 0:00:01]} Be7 {[%emt 0:00:02]} 36. Qd5+ {[%emt 0:00:04]} Kf8 {[%emt 0:00:08]} 37. Bd4 {[%emt 0:00:07]} Qb1+ {[%emt 0:00:06]} 38. Kg2 {[%emt 0:00:02] The position is equal.} Qg6 {[%emt 0:00:03]} 39. Qa8+ {[%emt 0:00:02]} Kf7 {[%emt 0:00:01] With the idea ...Qf5.} 40. Qf3+ {[%emt 0:00:05]} Ke6 {[%emt 0:00:02]} 41. Qc6+ {[%emt 0:00:03]} Kf7 {[%emt 0:00:02]} 42. Qf3+ {[%emt 0:00:01]} Ke8 {[%emt 0:00:08]} 43. Qa8+ {[%emt 0:00:02]} Kf7 {[%emt 0:00:05]} 44. Qf3+ {[%emt 0:00:03]} Ke8 {[%emt 0:00:02] Weighted Error Value: White=0.17 (very precise) /Black=0.14 (very precise) .  Mistake:       	White=3     	Black=2      Inaccurate:     	White=5     	Black=7      OK:         	White=14    	Black=11     Best:        	White=2     	Black=2} 1/2-1/2